lending/lending_fUSD_20251218
["ID","MTS","AMOUNT","RATE_DAILY","PERIOD"]
[399025962,1766075453704,-500.0,0.000418,120]
[399025963,1766075453785,-500.0,0.000418,120]
[399025964,1766075453863,-500.0,0.000418,120]
[399025965,1766075453943,-500.0,0.000418,120]
[399025966,1766075454026,-500.0,0.000418,120]
[399025967,1766075454107,-500.0,0.000418,120]
[399025968,1766075454185,-500.0,0.000418,120]
[399025969,1766075454265,-500.0,0.000418,120]
[399025970,1766075454343,-500.0,0.000418,120]
[399025971,1766075454428,-500.0,0.000418,120]
[399025972,1766075454512,-500.0,0.000418,120]
[399025973,1766075454589,-684.0,0.000418,120]
[399025974,1766075454667,-625.5,0.00042567,120]
[399025975,1766075454744,-625.5,0.00042567,120]
[399025976,1766075454823,-625.5,0.00042567,120]
[399025977,1766075454903,-625.5,0.00042567,120]
[399025978,1766075454985,-625.5,0.00042567,120]
[399025979,1766075455064,-625.5,0.00042567,120]
[399025980,1766075455148,-625.5,0.00042567,120]
[399025981,1766075455226,-625.5,0.00042567,120]
[399025982,1766075455305,-625.5,0.00042567,120]
[399025983,1766075455385,-625.5,0.00042567,120]
[399025984,1766075457616,-876.085341,0.00055,120]
[399025985,1766075457696,-2000.0,0.00059999,30]
[399025986,1766075457774,-2000.0,0.00059999,30]
[399025987,1766075457849,-2000.0,0.00059999,30]
[399025988,1766075457925,-2000.0,0.00059999,30]
[399025989,1766075458009,-2000.0,0.00059999,30]
[399025990,1766075458096,-2000.0,0.00060199,30]
[399025991,1766075458188,-4883.73179391,0.00062914,30]
[399025992,1766075458272,-3000.0,0.00063014,30]
[399025993,1766075458348,-3000.0,0.00063014,30]
[399025994,1766075458425,-15052.0,0.00063178,120]
[399025995,1766075458504,-168.0,0.000632,120]
[399025996,1766075458587,-20098.0,0.00063278,120]
[399025997,1766075458665,-152.0,0.000634,120]
[399025998,1766075458745,-905.88181409,0.000635,120]
[399025999,1766075458824,-168.0,0.000637,120]
[399026000,1766075458898,-999.0,0.00063717,120]
[399026001,1766075459466,-22861.0,0.00063732,120]
[399026002,1766075459543,-152.0,0.000639,120]
[399026003,1766075459618,-1000.0,0.00063999,120]
[399026004,1766075459691,-1251.09801283,0.00064,120]
[399026005,1766075459763,-200.0,0.00064,120]
[399026006,1766075459832,-23051.49628579,0.00064,120]
[399026007,1766075459905,-20000.0,0.00064,120]
[399026008,1766075459974,-1835.52314907,0.00064,120]
[399026009,1766075460048,-48327.622398,0.00064,120]
[399026010,1766075460127,-234.0,0.00064,118]
[399026011,1766075460207,-168.0,0.000642,120]
[399026012,1766075460289,-20098.0,0.00064278,120]
[399026013,1766075460378,-20098.0,0.00064278,120]
[399026014,1766075460462,-152.0,0.000644,120]
[399026015,1766075460540,-4489.0186,0.00064444,30]
[399026016,1766075460622,-168.0,0.000647,120]
[399026017,1766075460699,-22861.0,0.00064732,120]
[399026018,1766075460785,-999.0,0.00064813,120]
[399026019,1766075460865,-2000.0,0.0006486,71]
[399026020,1766075460943,-1490.27737915,0.0006499,120]
[399026021,1766075461022,-1000.0,0.00064999,120]
[399026022,1766075461101,-50000.0,0.00065,65]
[399026023,1766075461183,-2611.65,0.00065,120]
[399026024,1766075461265,-250.0,0.00065,120]
[399026025,1766075461345,-166.34006511,0.00065,120]
[399026026,1766075461426,-5000.0,0.00065,120]
[399026027,1766075461502,-4000.000099,0.00065,120]
[399026028,1766075461580,-150.0,0.00065,90]
[399026029,1766075461656,-1500.44805,0.00065,120]
[399026030,1766075461729,-390.77,0.00065,120]
[399026031,1766075461802,-1172.93,0.00065,120]
[399026032,1766075461876,-152.0,0.00065,120]
[399026033,1766075461967,-750.0,0.00065,120]
[399026034,1766075462045,-168.0,0.000652,120]
[399026035,1766075462123,-20098.0,0.00065278,120]
[399026036,1766075462201,-152.0,0.000655,120]
[399026037,1766075462282,-168.0,0.000657,120]
[399026038,1766075462360,-22861.0,0.00065732,120]
[399026039,1766075462437,-323.01,0.00065746,120]
[399026040,1766075462514,-10146.38314304,0.00065753,120]
[399026041,1766075462592,-10047.25268955,0.00065753,120]
[399026042,1766075462666,-800.0,0.00065753,120]
[399026043,1766075462745,-503.0833692,0.000659,120]
[399026044,1766075462822,-1065.08117579,0.00065909,120]
[399026045,1766075462897,-660.43545383,0.00066,30]
[399026046,1766075462972,-200.0,0.00066,120]
[399026047,1766075463048,-366.0,0.00066,120]
[399026048,1766075463124,-152.0,0.00066,120]
[399026049,1766075463203,-202.379737,0.00066,120]
[399026050,1766075463283,-168.0,0.000662,120]
[399026051,1766075463360,-20098.0,0.00066278,120]
[399026052,1766075463438,-2000.0,0.0006635,71]
[399026053,1766075463523,-152.0,0.000665,120]
[399026054,1766075463609,-42197.7812393,0.000666,120]
[399026055,1766075463689,-168.0,0.000667,120]
[399026056,1766075463767,-1094.99,0.000667,120]
[399026057,1766075463846,-22861.0,0.00066732,120]
[399026058,1766075463925,-2348.48865568,0.00066942,120]
[399026059,1766075464004,-389.36604735,0.00066967,120]
[399026060,1766075464083,-11610.35354001,0.00066974,120]
[399026061,1766075464162,-1100.50821364,0.00066993,120]
[399026062,1766075464243,-328.92679694,0.00066994,120]
[399026063,1766075464327,-40282.73814947,0.00066999,120]
[399026064,1766075464404,-2118.74,0.00067,120]
[399026065,1766075464482,-20000.0,0.00067,120]
[399026066,1766075464560,-152.0,0.00067,120]
[399026067,1766075464639,-168.0,0.000671,120]
[399026068,1766075464721,-175.79942496,0.0006712,120]
[399026069,1766075464797,-20098.0,0.00067278,120]
[399026070,1766075464873,-271.0,0.000674,30]
[399026071,1766075464952,-533883.92296463,0.00067478,120]
[399026072,1766075465030,-177126.0,0.00067478,120]
[399026073,1766075465108,-353004.0,0.00067478,120]
[399026074,1766075465194,-353048.0,0.00067478,120]
[399026075,1766075465286,-177126.00000007,0.00067478,120]
[399026076,1766075465367,-354752.00000002,0.00067478,120]
[399026077,1766075465447,-1000.0,0.00067499,120]
[399026078,1766075465527,-168.0,0.000676,120]
[399026079,1766075465606,-152.0,0.000676,120]
[399026080,1766075465684,-22861.0,0.00067732,120]
[399026081,1766075465759,-433.43498051,0.000678,120]
[399026082,1766075465833,-250.0,0.0006787,90]
[399026083,1766075465908,-200.0,0.0006787,90]
[399026084,1766075465986,-200.0,0.00068,120]
[399026085,1766075466068,-2061.61,0.00068,30]
[399026086,1766075466154,-1480.78569306,0.00068,120]
[399026087,1766075466240,-168.0,0.000681,120]
[399026088,1766075466319,-152.0,0.000681,120]
[399026089,1766075466404,-20098.0,0.00068278,120]
[399026090,1766075466484,-168.0,0.000686,120]
[399026091,1766075466561,-152.0,0.000686,120]
[399026092,1766075466640,-2000.0,0.0006863,65]
[399026093,1766075466720,-22861.0,0.00068732,120]
[399026094,1766075466798,-1000.0,0.00068899,120]
[399026095,1766075466874,-4000.0,0.000689,30]
[399026096,1766075467249,-1000.0,0.0006899,30]
[399026097,1766075467333,-250.92,0.00069,60]
[399026098,1766075467409,-150.0,0.00069,120]
[399026099,1766075467483,-150.0,0.00069,120]
[399026100,1766075467559,-150.0,0.00069,120]
[399026101,1766075467636,-234.0,0.00069,120]
[399026102,1766075467708,-168.0,0.000691,120]
[399026103,1766075467781,-152.0,0.000691,120]
[399026104,1766075467858,-20098.0,0.00069278,120]
[399026105,1766075467933,-168.0,0.000696,120]
[399026106,1766075468007,-152.0,0.000697,120]
[399026107,1766075468084,-2000.0,0.0006985,69]
[399026108,1766075468167,-22861.0,0.00069873,120]
[399026109,1766075468248,-1000.0,0.00069999,120]
[399026110,1766075468328,-500.0,0.0007,120]
[399026111,1766075468406,-300.0,0.0007,120]
[399026112,1766075468483,-150.0,0.0007,120]
[399026115,1766075468560,-290.54514059,0.0007,120]
[399026118,1766075468635,-150.0,0.0007,120]
[399026119,1766075468709,-500.0,0.0007,120]
[399026120,1766075468783,-1000.0,0.0007,60]
[399026121,1766075468858,-150.0,0.0007,120]
[399026122,1766075468934,-150.0,0.0007,60]
[399026123,1766075469009,-500.0,0.0007,60]
[399026124,1766075469087,-10000.0,0.0007,120]
[399026125,1766075469165,-624.80939892,0.0007,120]
[399026126,1766075469242,-750.0,0.0007,120]
[399026127,1766075469320,-162.65,0.0007,60]
[399026128,1766075469398,-1000.0,0.0007,120]
[399026129,1766075469477,-150.08871566,0.0007,60]
[399026130,1766075469553,-22300.0,0.0007,120]
[399026131,1766075469630,-168.0,0.000701,120]
[399026132,1766075469706,-152.0,0.000702,120]
[399026133,1766075469781,-168.0,0.000706,120]
[399026134,1766075469855,-153.56,0.00070601,120]
[399026135,1766075469926,-152.0,0.000707,120]
[399026136,1766075469999,-150.0,0.00071,120]
[399026137,1766075470076,-221.35,0.00071,60]
[399026138,1766075470152,-168.0,0.000711,120]
[399026139,1766075470229,-152.0,0.000712,120]
[399026140,1766075471066,3000.0,0.00063014,30]
[399026141,1766075471148,3000.0,0.00063014,30]
[399026142,1766075471231,3000.0,0.00063014,30]
[399026143,1766075471315,3000.0,0.00063014,30]
[399026144,1766075471403,3000.0,0.00063014,30]
[399026145,1766075471832,3000.0,0.00063014,30]
[399026146,1766075471912,1507296.4910062,0.00071223,120]
[399026147,1766075472005,213.995871,0.00042568,120]
[399026148,1766075472201,88235.789,0.0003922,30]
[399026149,1766075472285,88235.789,0.0004322,30]
[399026150,1766075499921,-1395.67881819,0.00042572,120]
[399026151,1766075500002,-500.0,0.00042572,120]
[399026152,1766075500080,-1077.31,0.00042572,120]
[399026153,1766075500161,-617.22,0.00042572,120]
[399026154,1766075500239,-524.82,0.00042572,120]
[399026155,1766075500320,-718.26,0.00042572,120]
[399026156,1766075500400,-1148.29,0.00042572,120]
[399026157,1766075500483,-563.01,0.00042572,120]
[399026158,1766075500565,-4790.59,0.00042572,120]
[399026159,1766075500645,-1486.81,0.00042572,120]
[399026160,1766075500720,-500.0,0.00042572,120]
[399026161,1766075500799,-1077.31,0.00042572,120]
[399026162,1766075500883,-617.22,0.00042572,120]
[399026163,1766075500977,-500.0,0.00042572,120]
[399026164,1766075501059,-524.82,0.00042572,120]
[399026165,1766075501136,-718.26,0.00042572,120]
[399026166,1766075501215,-563.01,0.00042572,120]
[399026167,1766075501295,-4790.59,0.00042572,120]
[399026168,1766075501376,-1148.29,0.00042572,120]
[399026169,1766075501454,-1486.81,0.00042572,120]
[399026170,1766075501532,-566.34598843,0.00042572,120]
[399026171,1766075501610,-617.22,0.00042572,120]
[399026172,1766075501686,-216.36,0.00042572,120]
[399026173,1766075501760,-589.83,0.00042572,120]
[399026174,1766075501834,-1077.31,0.00042572,120]
[399026175,1766075501913,-475.93443754,0.00042572,120]
[399026176,1766075501990,-4790.59,0.00042572,120]
[399026177,1766075502067,-718.26,0.00042572,120]
[399026178,1766075502145,-563.01,0.00042572,120]
[399026179,1766075502222,-1148.29,0.00042572,120]
[399026180,1766075502307,-1486.81,0.00042572,120]
[399026181,1766075502384,-617.22,0.00042572,120]
[399026182,1766075502460,-500.0,0.00042572,120]
[399026183,1766075502535,-4790.59,0.00042572,120]
[399026184,1766075502616,-1077.31,0.00042572,120]
[399026185,1766075502692,-718.26,0.00042572,120]
[399026186,1766075502767,-563.01,0.00042572,120]
[399026187,1766075502843,-1486.81,0.00042572,120]
[399026188,1766075502919,-1148.29,0.00042572,120]
[399026189,1766075502997,-524.82,0.00042572,120]
[399026190,1766075503075,-617.22,0.00042572,120]
[399026191,1766075503152,-500.0,0.00042572,120]
[399026192,1766075503231,-4790.59,0.00042572,120]
[399026193,1766075503307,-718.26,0.00042572,120]
[399026194,1766075503382,-589.83,0.00042572,120]
[399026195,1766075503461,-1486.81,0.00042572,120]
[399026196,1766075503541,-563.01,0.00042572,120]
[399026197,1766075503629,-1077.31,0.00042572,120]
[399026198,1766075503710,-1148.29,0.00042572,120]
[399026199,1766075503793,-524.82,0.00042572,120]
[399026200,1766075503872,-617.22,0.00042572,120]
[399026201,1766075503953,-500.0,0.00042572,120]
[399026202,1766075504038,-4790.59,0.00042572,120]
[399026203,1766075504127,-718.26,0.00042572,120]
[399026204,1766075504217,-1486.81,0.00042572,120]
[399026205,1766075504299,-563.01,0.00042572,120]
[399026206,1766075504377,-589.83,0.00042572,120]
[399026207,1766075504471,-1077.31,0.00042572,120]
[399026208,1766075504564,-1148.29,0.00042572,120]
[399026209,1766075504647,-524.82,0.00042572,120]
[399026210,1766075504728,-617.22,0.00042572,120]
[399026211,1766075504804,-500.0,0.00042572,120]
[399026212,1766075504881,-4790.59,0.00042572,120]
[399026213,1766075504961,-589.83,0.00042572,120]
[399026214,1766075505042,-1486.97,0.00042572,120]
[399026215,1766075505123,-563.01,0.00042572,120]
[399026216,1766075505202,-6336.47,0.00042572,120]
[399026217,1766075505284,-1077.31,0.00042572,120]
[399026218,1766075505370,-718.26,0.00042572,120]
[399026219,1766075505454,-1148.29,0.00042572,120]
[399026220,1766075505919,-525.03,0.00042572,120]
[399026221,1766075506001,-617.22,0.00042572,120]
[399026222,1766075506080,-500.0,0.00042572,120]
[399026223,1766075506163,-563.01,0.00042572,120]
[399026224,1766075506259,-589.83,0.00042572,120]
[399026225,1766075506342,-6336.47,0.00042572,120]
[399026226,1766075506424,-718.26,0.00042572,120]
[399026227,1766075506504,-1148.29,0.00042572,120]
[399026228,1766075506585,-1077.31,0.00042572,120]
[399026229,1766075506665,-4790.59,0.00042572,120]
[399026230,1766075506745,-617.22,0.00042572,120]
[399026231,1766075506827,-500.0,0.00042572,120]
[399026232,1766075506914,-563.01,0.00042572,120]
[399026233,1766075506998,-589.83,0.00042572,120]
[399026234,1766075507083,-718.26,0.00042572,120]
[399026235,1766075507170,-500.0,0.00042572,120]
[399026236,1766075507258,-1148.29,0.00042572,120]
[399026237,1766075507345,-6336.47,0.00042572,120]
[399026238,1766075507442,-4790.59,0.00042572,120]
[399026239,1766075507540,-1077.31,0.00042572,120]
[399026240,1766075507621,-500.0,0.00042572,120]
[399026241,1766075507699,-617.22,0.00042572,120]
[399026242,1766075507778,-589.83,0.00042572,120]
[399026243,1766075507858,-563.01,0.00042572,120]
[399026244,1766075507937,-718.26,0.00042572,120]
[399026245,1766075508017,-1148.29,0.00042572,120]
[399026246,1766075508102,-6336.47,0.00042572,120]
[399026247,1766075508190,-500.0,0.00042572,120]
[399026248,1766075508285,-500.0,0.00042572,120]
[399026249,1766075508380,-1077.31,0.00042572,120]
[399026250,1766075508473,-4790.59,0.00042572,120]
[399026251,1766075508551,-500.0,0.00042572,120]
[399026252,1766075508629,-617.22,0.00042572,120]
[399026253,1766075508708,-563.01,0.00042572,120]
[399026254,1766075508787,-589.83,0.00042572,120]
[399026255,1766075508871,-1148.29,0.00042572,120]
[399026256,1766075508957,-718.26,0.00042572,120]
[399026257,1766075509039,-500.0,0.00042572,120]
[399026258,1766075509117,-500.0,0.00042572,120]
[399026259,1766075509198,-6336.47,0.00042572,120]
[399026260,1766075509276,-1077.31,0.00042572,120]
[399026261,1766075509356,-4790.59,0.00042572,120]
[399026262,1766075509434,-7544.84,0.00042572,120]
[399026263,1766075509513,-500.0,0.00042572,120]
[399026264,1766075509594,-589.83,0.00042572,120]
[399026265,1766075509678,-563.01,0.00042572,120]
[399026266,1766075509757,-718.26,0.00042572,120]
[399026267,1766075509835,-1148.42375779,0.00042572,120]
[399026268,1766075509913,-6336.47,0.00042572,120]
[399026269,1766075509992,-500.0,0.00042572,120]
[399026270,1766075510075,-1077.31,0.00042572,120]
[399026271,1766075510153,-4790.59,0.00042572,120]
[399026272,1766075510234,-500.0,0.00042572,120]
[399026273,1766075510318,-7544.84,0.00042572,120]
[399026274,1766075510402,-500.0,0.00042572,120]
[399026275,1766075510486,-589.83,0.00042572,120]
[399026276,1766075510567,-617.22,0.00042572,120]
[399026277,1766075510643,-718.26,0.00042572,120]
[399026278,1766075510720,-563.01,0.00042572,120]
[399026279,1766075510796,-6336.47,0.00042572,120]
[399026280,1766075510877,-500.0,0.00042572,120]
[399026281,1766075510957,-4790.59,0.00042572,120]
[399026282,1766075511033,-500.0,0.00042572,120]
[399026283,1766075511111,-1077.31,0.00042572,120]
[399026284,1766075511193,-7544.84,0.00042572,120]
[399026285,1766075511272,-589.83,0.00042572,120]
[399026286,1766075511351,-500.0,0.00042572,120]
[399026287,1766075511431,-617.22,0.00042572,120]
[399026288,1766075511521,-718.26,0.00042572,120]
[399026289,1766075511620,-6336.47,0.00042572,120]
[399026290,1766075511706,-4790.59,0.00042572,120]
[399026291,1766075511794,-1077.31,0.00042572,120]
[399026292,1766075511892,-500.0,0.00042572,120]
[399026293,1766075511975,-500.0,0.00042572,120]
[399026294,1766075512060,-7544.84,0.00042572,120]
[399026295,1766075512143,-563.01,0.00042572,120]
[399026296,1766075512223,-589.83,0.00042572,120]
[399026297,1766075512304,-500.0,0.00042572,120]
[399026298,1766075512385,-617.22,0.00042572,120]
[399026299,1766075512470,-718.26,0.00042572,120]
[399026300,1766075512551,-6336.47,0.00042572,120]
[399026301,1766075512637,-4790.59,0.00042572,120]
[399026302,1766075512721,-500.0,0.00042572,120]
[399026303,1766075512802,-1077.31,0.00042572,120]
[399026304,1766075512878,-500.0,0.00042572,120]
[399026305,1766075512955,-7544.84,0.00042572,120]
[399026306,1766075513033,-563.15769189,0.00042572,120]
[399026307,1766075513111,-589.83,0.00042572,120]
[399026308,1766075513193,-500.0,0.00042572,120]
[399026309,1766075513279,-718.26,0.00042572,120]
[399026310,1766075513358,-617.22,0.00042572,120]
[399026311,1766075513438,-6336.47,0.00042572,120]
[399026312,1766075513524,-4790.59,0.00042572,120]
[399026313,1766075513609,-500.0,0.00042572,120]
[399026314,1766075513688,-1077.46196509,0.00042572,120]
[399026315,1766075513769,-500.0,0.00042572,120]
[399026316,1766075514335,-7544.84,0.00042572,120]
[399026317,1766075514414,-589.91256758,0.00042572,120]
[399026318,1766075514490,-500.0,0.00042572,120]
[399026319,1766075514574,-617.39578665,0.00042572,120]
[399026320,1766075514652,-6336.47,0.00042572,120]
[399026321,1766075514729,-509.03820159,0.00042572,120]
[399026322,1766075514813,-4790.71,0.00042572,120]
[399026323,1766075514895,-718.26,0.00042572,120]
[399026324,1766075514978,-7544.84,0.00042572,120]
[399026325,1766075515063,-500.0,0.00042572,120]
[399026326,1766075515146,-500.0,0.00042572,120]
[399026327,1766075515228,-6336.47,0.00042572,120]
[399026328,1766075515312,-7544.84,0.00042572,120]
[399026329,1766075515395,-718.26,0.00042572,120]
[399026330,1766075515476,-500.0,0.00042572,120]
[399026331,1766075515559,-500.0,0.00042572,120]
[399026332,1766075515638,-6336.47,0.00042572,120]
[399026333,1766075515715,-7544.84,0.00042572,120]
[399026334,1766075515796,-718.26,0.00042572,120]
[399026335,1766075515880,-500.0,0.00042572,120]
[399026336,1766075515960,-503.07519926,0.00042572,120]
[399026337,1766075516040,-6336.47,0.00042572,120]
[399026338,1766075516124,-7544.84,0.00042572,120]
[399026339,1766075516207,-718.26,0.00042572,120]
[399026340,1766075516292,-600.95364441,0.00042572,120]
[399026341,1766075516375,-6336.47,0.00042572,120]
[399026342,1766075516457,-7544.84,0.00042572,120]
[399026343,1766075516542,-718.29,0.00042572,120]
[399026344,1766075516624,-6336.47,0.00042572,120]
[399026345,1766075516704,-7544.84,0.00042572,120]
[399026346,1766075516787,-500.0,0.00042572,120]
[399026347,1766075516871,-6336.47,0.00042572,120]
[399026348,1766075516952,-16258.15,0.00042572,30]
[399026349,1766075517028,-500.0,0.00042572,120]
[399026350,1766075517111,-7544.84,0.00042572,120]
[399026351,1766075517196,-6336.47,0.00042572,120]
[399026352,1766075517282,-16258.15,0.00042572,30]
[399026353,1766075517366,-1557.85,0.00042572,120]
[399026354,1766075517447,-500.0,0.00042572,120]
[399026355,1766075517531,-7544.84,0.00042572,120]
[399026356,1766075517612,-3772.52,0.00042572,120]
[399026357,1766075517689,-6336.47,0.00042572,120]
[399026358,1766075517766,-16258.15,0.00042572,30]
[399026359,1766075517839,-500.0,0.00042572,120]
[399026360,1766075517911,-1557.85,0.00042572,120]
[399026361,1766075517988,-7544.84,0.00042572,120]
[399026362,1766075518069,-3772.52,0.00042572,120]
[399026363,1766075518154,-6336.47,0.00042572,120]
[399026364,1766075518238,-16258.15,0.00042572,30]
[399026365,1766075518318,-1557.85,0.00042572,120]
[399026366,1766075518402,-500.0,0.00042572,120]
[399026367,1766075518486,-7544.84,0.00042572,120]
[399026368,1766075518566,-500.0,0.00042572,120]
[399026369,1766075518645,-6336.47,0.00042572,120]
[399026370,1766075518728,-3772.52,0.00042572,120]
[399026371,1766075518801,-1557.85,0.00042572,120]
[399026372,1766075518878,-16258.15,0.00042572,30]
[399026373,1766075518956,-241.52192645,0.00042572,120]
[399026374,1766075519037,-7544.84,0.00042572,120]
[399026375,1766075519120,-500.0,0.00042572,120]
[399026376,1766075519201,-6336.47,0.00042572,120]
[399026377,1766075519283,-3772.52,0.00042572,120]
[399026378,1766075519362,-1557.85,0.00042572,120]
[399026379,1766075519445,-16258.15,0.00042572,30]
[399026380,1766075519532,-7544.84,0.00042572,120]
[399026381,1766075519616,-500.0,0.00042572,120]
[399026382,1766075519699,-6336.47,0.00042572,120]
[399026383,1766075519781,-3772.52,0.00042572,120]
[399026384,1766075519862,-1557.85,0.00042572,120]
[399026385,1766075519950,-16258.15,0.00042572,30]
[399026386,1766075520030,-7544.84,0.00042572,120]
[399026387,1766075520117,-6336.64047346,0.00042572,120]
[399026388,1766075520199,-500.0,0.00042572,120]
[399026389,1766075520292,-16258.15,0.00042572,30]
[399026390,1766075520377,-1557.85,0.00042572,120]
[399026391,1766075520477,-3772.52,0.00042572,120]
[399026392,1766075520563,-7544.84,0.00042572,120]
[399026393,1766075520644,-500.0,0.00042572,120]
[399026394,1766075520720,-3772.52,0.00042572,120]
[399026395,1766075520807,-1557.85,0.00042572,120]
[399026396,1766075520892,-16258.15,0.00042572,30]
[399026397,1766075520976,-7544.84,0.00042572,120]
[399026398,1766075521062,-1485.42,0.00042572,120]
[399026399,1766075521158,-500.0,0.00042572,120]
[399026400,1766075521245,-3772.52,0.00042572,120]
[399026401,1766075521332,-16258.15,0.00042572,30]
[399026402,1766075521422,-1557.85,0.00042572,120]
[399026403,1766075521510,-7544.84,0.00042572,120]
[399026404,1766075521600,-500.0,0.00042572,120]
[399026405,1766075521697,-500.0,0.00042572,120]
[399026406,1766075521777,-1485.42,0.00042572,120]
[399026407,1766075521860,-3772.52,0.00042572,120]
[399026408,1766075521941,-16258.15,0.00042572,30]
[399026409,1766075522028,-1557.85,0.00042572,120]
[399026410,1766075522120,-500.0,0.00042572,120]
[399026411,1766075522650,-500.0,0.00042572,120]
[399026412,1766075522742,-1485.42,0.00042572,120]
[399026413,1766075522825,-3772.52,0.00042572,120]
[399026414,1766075522908,-16258.15,0.00042572,30]
[399026415,1766075522988,-1557.85,0.00042572,120]
[399026416,1766075523071,-500.0,0.00042572,120]
[399026417,1766075523154,-279.46691211,0.00042572,120]
[399026418,1766075523239,-1485.42,0.00042572,120]
[399026419,1766075523321,-489.30356786,0.00042572,120]
[399026420,1766075523407,-7544.84,0.00042572,120]
[399026421,1766075523488,-3772.52,0.00042572,120]
[399026422,1766075523570,-16258.15,0.00042572,30]
[399026423,1766075523656,-1557.85,0.00042572,120]
[399026424,1766075523748,-500.0,0.00042572,120]
[399026425,1766075523826,-1485.42,0.00042572,120]
[399026426,1766075523907,-7544.9677427,0.00042572,120]
[399026427,1766075523986,-7704.16,0.00042572,120]
[399026428,1766075524066,-3772.52,0.00042572,120]
[399026429,1766075524173,-1557.85,0.00042572,120]
[399026430,1766075524262,-678.15,0.00042572,120]
[399026431,1766075524345,-500.0,0.00042572,120]
[399026432,1766075524450,-1485.42,0.00042572,120]
[399026433,1766075524536,-3772.52,0.00042572,120]
[399026434,1766075524619,-1557.85,0.00042572,120]
[399026435,1766075524705,-7704.16,0.00042572,120]
[399026436,1766075524792,-16258.15,0.00042572,30]
[399026437,1766075524875,-678.15,0.00042572,120]
[399026438,1766075524966,-500.0,0.00042572,120]
[399026439,1766075525065,-1791.4,0.00042572,120]
[399026440,1766075525157,-3772.52,0.00042572,120]
[399026441,1766075525241,-1485.42,0.00042572,120]
[399026442,1766075525331,-16258.15,0.00042572,30]
[399026443,1766075525419,-7704.16,0.00042572,120]
[399026444,1766075525524,-1557.85,0.00042572,120]
[399026445,1766075525610,-678.15,0.00042572,120]
[399026446,1766075525696,-500.0,0.00042572,120]
[399026447,1766075525781,-1791.4,0.00042572,120]
[399026448,1766075525861,-3772.52,0.00042572,120]
[399026449,1766075525945,-16258.15,0.00042572,30]
[399026450,1766075526030,-7704.16,0.00042572,120]
[399026451,1766075526113,-1557.85,0.00042572,120]
[399026452,1766075526210,-500.0,0.00042572,120]
[399026453,1766075526297,-678.15,0.00042572,120]
[399026454,1766075526380,-1791.4,0.00042572,120]
[399026455,1766075526465,-3772.52,0.00042572,120]
[399026456,1766075526549,-16258.15,0.00042572,30]
[399026457,1766075526635,-1557.85,0.00042572,120]
[399026458,1766075526737,-500.0,0.00042572,120]
[399026459,1766075526837,-7704.16,0.00042572,120]
[399026460,1766075526918,-1791.4,0.00042572,120]
[399026461,1766075526999,-3772.52,0.00042572,120]
[399026462,1766075527085,-16258.15,0.00042572,30]
[399026463,1766075527188,-678.15,0.00042572,120]
[399026464,1766075527272,-500.0,0.00042572,120]
[399026465,1766075527358,-7704.16,0.00042572,120]